Cogmind - Beta 13 X1 @@@ ROGUE MODE // 2023.11.15 @ 23:52:21 Player: ArabianSandBoa Result: Destroyed 0b10! Performance ------------- Evolutions (9) 4500 Regions Visited (21) 4200 Robots Destroyed (190) 950 Value Destroyed (5509) 5509 Prototype IDs (54) 1080 Alien Tech Used (8) 1600 Bonus (14673) 14673 TOTAL SCORE: 32512 Bonus ------- High Alert Combat Kills 577 Follower Combat Kills 882 Aligned with FarCom 300 Used Core Reset Matrix 3000 Scanned by Researcher 500 Pursued by Intercept 500 Met Sigix 2000 Escaped with Sigix 5000 Win 3000 Friendly Fire -1086 Cogmind --------- Core Integrity 351/1600 Matter 0/300 Energy 98/100 System Corruption 0% Temperature Cool (0) Movement Core (50) Location Tau Ceti IV Orbit Parts ------- > --- POWER (2) -------- (None) > --- PROPULSION (9) --- (None) > --- UTILITY (12) ----- Spacefold Activator > --- WEAPON (2) ------- (None) > --- INVENTORY (5) ---- Quantum Reactor Advanced Transmission Jammer Improved Focal Shield Sigix Containment Pod Peak State ------------ > --- POWER ------------ Light Particle Reactor Quantum Reactor > --- PROPULSION ------- Nuclear Pulse Array Nuclear Pulse Array Nuclear Pulse Array Impulse Thruster Array > --- UTILITY ---------- Experimental Cooling System Advanced Visual Processing Unit Long-range Sensor Array Advanced Signal Interpreter Weapon Mount Advanced Target Analyzer Reaction Control System Advanced Phase Shifter Advanced Cloaking Device Improved Weapon Shielding Spacefold Activator > --- WEAPON ----------- Centrium Greatsword > --- INVENTORY -------- Xenon Bombardment Thruster Xenon Bombardment Thruster Longsword +1 Sigix Containment Pod [Rating: 162] Favorites ----------- Power Light Angular Momentum Engine Engine Light Angular Momentum Engine Power Core Enhanced Nuclear Core Reactor Light Antimatter Reactor Propulsion Improved Treads Treads Improved Treads Leg Aluminum Leg Wheel Wheel Flight Unit Improved Cesium-ion Thruster Utility Improved Weapon Shielding Device Improved Heat Sink Storage Large Storage Unit Processor Improved Targeting Computer Hackware Hacking Suite Protection Improved Weapon Shielding Artifact Spacefold Activator Weapon Light EM Pulse Cannon Energy Gun Pulse Rifle Energy Cannon Light EM Pulse Cannon Ballistic Gun Heavy Assault Rifle Launcher Rocket Array Impact Weapon Core Stripper Slashing Weapon Longsword +1 Piercing Weapon Enhanced Force Lance Build | -11 -10 -10 -9 -9 -9 -8 -8 -7 -7 -6 -5 -4 -4 -4 -4 -4 -3 -2 -2 -2 -1 ------- Run | Jun Mat Min Mat Min Exi Min Mat Fac Sto Fac Fac Fac Ext Cet Arc Hub Res Res Qua Sec Acc Slots Evolved 18 | . . . 2 . . . 2 2 . 2 2 2 . . . . 2 2 . . 2 Power 1 | . . . . . . . . . . . 1 . . . . . . . . . . Propulsion 7 | . . . . . . . 2 1 . 1 . 1 . . . . . 1 . . 1 Utility 10 | . . . 2 . . . . 1 . 1 1 1 . . . . 2 1 . . 1 Weapon . | . . . . . . . . . . . . . . . . . . . . . . Parts Attached 322 | 3 6 3 13 16 3 1 9 90 19 14 14 8 13 11 3 5 10 39 14 5 23 Power 29 | . . 1 . 1 . . . 7 2 . 1 . 2 2 . 1 4 3 1 1 3 Engine 7 | . . 1 . 1 . . . 1 1 . . . . . . 1 2 . . . . Core 9 | . . . . . . . . 6 1 . 1 . 1 . . . . . . . . Reactor 13 | . . . . . . . . . . . . . 1 2 . . 2 3 1 1 3 Propulsion 86 | 2 2 1 2 3 . . 3 32 6 2 3 3 1 3 . . 3 14 2 2 2 Treads 10 | . 2 1 1 3 . . 2 1 . . . . . . . . . . . . . Leg . | . . . . . . . . . . . . . . . . . . . . . . Wheel 20 | 2 . . . . . . 1 16 . . . . . . . . . 1 . . . Hover . | . . . . . . . . . . . . . . . . . . . . . . Flight 56 | . . . 1 . . . . 15 6 2 3 3 1 3 . . 3 13 2 2 2 Utility 136 | 1 1 1 6 7 3 1 2 22 8 9 6 5 9 6 1 3 3 17 7 2 16 Device 70 | 1 . 1 3 3 . 1 2 7 2 4 3 3 7 2 1 1 2 12 3 1 11 Storage 10 | . 1 . . . 2 . . 4 1 . . 1 . . . . . 1 . . . Processor 22 | . . . 1 1 . . . 2 3 1 . . 1 1 . 2 1 3 3 . 3 Hackware 6 | . . . . . . . . 1 1 1 2 . . . . . . 1 . . . Protection 24 | . . . 2 3 1 . . 8 1 3 1 1 1 3 . . . . . . . Artifact 4 | . . . . . . . . . . . . . . . . . . . 1 1 2 Weapon 71 | . 3 . 5 5 . . 4 29 3 3 4 . 1 . 2 1 . 5 4 . 2 Energy Gun 26 | . . . 3 2 . . 3 18 . . . . . . . . . . . . . Energy Cannon 9 | . . . 2 3 . . 1 . . . 2 . . . 1 . . . . . . Ballistic Gun 11 | . 3 . . . . . . 3 2 1 2 . . . . . . . . . . Ballistic Cannon . | . . . . . . . . . . . . . . . . . . . . . . Launcher 2 | . . . . . . . . . 1 1 . . . . . . . . . . . Special Weapon . | . . . . . . . . . . . . . . . . . . . . . . Impact Weapon 1 | . . . . . . . . . . . . . . . . . . . 1 . . Slashing Weapon 19 | . . . . . . . . 8 . 1 . . 1 . 1 1 . 2 3 . 2 Piercing Weapon 3 | . . . . . . . . . . . . . . . . . . 3 . . . Special Melee Weapon . | . . . . . . . . . . . . . . . . . . . . . . Unidentified Prototypes 36 | . . . 3 1 . . 1 5 3 1 2 1 . 1 . 1 . 8 5 3 1 Corrupted Parts 2 | . . . . . . . 1 . . . . . . 1 . . . . . . . System Corruption 4 | . . . . . . . 3 . . . . . . 1 . . . . . . . Parts Lost 59 | . . . 1 1 . . . 9 8 . . . 1 9 3 2 5 5 3 7 5 Power 6 | . . . . . . . . 1 . . . . . 2 . . 1 1 1 . . Propulsion 32 | . . . . . . . . 7 7 . . . . 2 2 2 1 3 1 3 4 Utility 18 | . . . . 1 . . . . 1 . . . 1 5 1 . 3 1 1 4 . Weapon 3 | . . . 1 . . . . 1 . . . . . . . . . . . . 1 Highest Loss Streak 8 | . . . 1 1 . . . 4 4 . . . 1 8 3 2 4 3 3 6 5 To Critical Strikes 1 | . . . . . . . . . . . . . . . . . . . . . 1 Average Slot Usage (%) 90 | . 99 100 99 99 96 88 89 89 84 78 90 99 99 85 80 67 53 84 81 76 49 Engine 5 | . 14 14 11 11 11 11 9 2 . . . . . . . 3 1 . . . . Core 2 | . . . . . . . . 4 6 6 9 10 9 . . . . . . . . Treads 13 | . 26 28 21 22 22 22 33 8 . . . . . . . . . . . . . Wheel 4 | . 1 . . . . . 2 19 . . . . . . . . . . . . . Flight 8 | . . . . . . . . 3 26 21 27 35 36 32 28 21 13 24 22 17 11 Device 13 | . 14 14 21 14 7 8 9 10 3 2 13 14 23 11 10 10 6 19 30 24 18 Storage 6 | . 14 14 11 11 11 11 9 6 1 . . . . . . . . . . . . Processor 7 | . . . . 7 11 11 9 10 14 12 2 . . 9 10 14 15 15 7 12 8 Hackware 2 | . . . . . . . . . 8 16 18 21 10 . . . . . 1 . . Protection 6 | . . . 11 10 10 2 . 5 5 4 4 5 5 14 14 10 9 7 4 3 . Energy Gun 5 | . 1 . 3 19 . . 4 12 . . . . . . . . . . . . . Energy Cannon 4 | . . . 5 2 22 22 13 . . . . . . . . . . . . . . Ballistic Gun 4 | . 26 28 12 . . . . . 6 5 5 5 . . . . . . . . . Slashing Weapon 2 | . . . . . . . . 1 7 5 5 5 9 10 8 6 4 5 6 4 3 Naked Turns 3 | . . . . . . . . . . . . . . . . . . . . . 3 Heaviest Build 237 | 13 30 32 39 41 237 220 219 232 21 21 28 29 39 40 40 16 22 49 50 54 41 Greatest Support 92 | 26 46 46 46 46 46 46 92 64 24 22 34 43 43 45 45 24 24 65 55 55 43 Greatest Overweight (x) 20 | . . . 1 . 5 4 13 20 1 . . . . . . 3 4 . . 7 . Average Overweight (x) . | . . . . . . 4 3 2 . . . . . . . . . . . . . Largest Inventory Capacity 35 | 8 15 15 15 15 35 35 35 35 8 5 5 5 5 5 5 5 5 5 5 5 5 Average Capacity 16 | 8 13 15 15 15 20 35 35 26 5 5 5 5 5 5 5 5 5 5 5 5 5 Most Carried 35 | 8 15 15 15 15 21 21 24 35 8 5 5 5 5 5 5 5 5 5 5 5 5 Average Carried 14 | 6 12 14 14 14 16 21 21 24 5 4 4 4 4 4 4 4 5 4 4 4 3 Final Capacity 35 | 8 15 15 15 15 35 35 35 8 5 5 5 5 5 5 5 5 5 5 5 5 5 Final Carried 24 | 8 15 15 14 15 21 21 24 8 5 5 5 5 5 4 5 5 5 5 5 3 5 Class Distribution -------------------- 42% | Mutant 18% | Hauler-Mutant 8% | Scavenger-Mutant 7% | Scavenger-Sprinter 6% | Hacker-Sprinter 4% | Commander-Sprinter 3% | Alien-Ninja Dominant Class ---------------- Mutant | -10/Materials Mutant | -10/Mines Mutant | -9/Materials Mutant | -9/Mines Mutant | -9/Exiles Hauler-Mutant | -8/Mines Hauler-Mutant | -8/Materials Hauler-Mutant | -7/Factory Scavenger-Sprinter | -7/Storage Commander-Sprinter | -6/Factory Hacker-Sprinter | -5/Factory Hacker-Sprinter | -4/Factory Commander-Sprinter | -4/Extension Scavenger-Sprinter | -4/Cetus Scavenger-Sprinter | -4/Archives Sprinter | -4/Hub_04(d) Scavenger-Sprinter | -3/Research Scavenger-Sprinter | -2/Research Ninja | -2/Quarantine Ninja | -2/Section 7 Alien-Ninja | -1/Access Resources | -11 -10 -10 -9 -9 -9 -8 -8 -7 -7 -6 -5 -4 -4 -4 -4 -4 -3 -2 -2 -2 -1 ----------- Run | Jun Mat Min Mat Min Exi Min Mat Fac Sto Fac Fac Fac Ext Cet Arc Hub Res Res Qua Sec Acc Matter Collected 3347 | 230 62 75 381 160 . . 120 808 260 . 139 . 357 116 25 10 116 96 359 33 . Remotely . | . . . . . . . . . . . . . . . . . . . . . . Salvage Created 8312 | 131 136 75 1103 417 . . 169 2048 1062 . 139 . 1380 138 124 38 505 290 489 42 26 Parts 428 | 10 11 2 67 15 . . 7 118 42 . 17 . 63 3 7 5 19 22 18 2 . Haulers Intercepted 7 | . . . 2 . . . . 4 . . . . . . . . . 1 . . . Recyclers Shooed 7 | . . . 4 . . . . 1 1 . . . . . . . . . 1 . . Parts Field Recycled . | . . . . . . . . . . . . . . . . . . . . . . Retrieved Matter . | . . . . . . . . . . . . . . . . . . . . . . Parts Self-Destructed . | . . . . . . . . . . . . . . . . . . . . . . Prevented . | . . . . . . . . . . . . . . . . . . . . . . Kills | -11 -10 -10 -9 -9 -9 -8 -8 -7 -7 -6 -5 -4 -4 -4 -4 -4 -3 -2 -2 -2 -1 ------- Run | Jun Mat Min Mat Min Exi Min Mat Fac Sto Fac Fac Fac Ext Cet Arc Hub Res Res Qua Sec Acc Combat Hostiles Destroyed 104 | . 3 2 21 8 . . 2 31 14 . 1 . 10 2 1 . 4 3 1 . 1 Melee 40 | . . . . . . . . 3 14 . 1 . 10 2 1 . 4 3 1 . 1 Guns 51 | . 3 2 13 8 . . 1 24 . . . . . . . . . . . . . Cannons 9 | . . . 8 . . . 1 . . . . . . . . . . . . . . Classes Destroyed 19 | 2 2 1 5 4 . . 1 3 . . . . . . . . . . . . 1 Worker 12 | . . . 2 . . . 1 8 . . . . . . . 1 . . . . . Builder 14 | . 1 . 2 . . . . 6 . . . . 4 . . 1 . . . . . Tunneler 6 | 4 . . . 2 . . . . . . . . . . . . . . . . . Hauler 7 | . . . 2 . . . . 4 . . . . . . . . . 1 . . . Recycler 24 | 1 1 . 4 2 . . 1 6 4 . . . 1 . . . 2 . 2 . . Mechanic 2 | . . . . . . . . 1 . . . . . . . . . . 1 . . Operator 6 | . . . . . . . . 1 . . 2 . 1 . 1 . 1 . . . . Drone 1 | . . . . . . . . . . . . . . . . . . . . . 1 Watcher 14 | . . . 1 . . . . 4 . . 1 . 1 . . . 1 3 2 1 . Swarmer 32 | . 3 . 9 . . . . 10 3 . . . . . . . 4 3 . . . Grunt 36 | . . 2 6 2 . . 1 14 5 . . . 5 1 . . . . . . . Brawler 2 | . . . . 1 . . . . 1 . . . . . . . . . . . . Duelist 2 | . . . 1 . . . . 1 . . . . . . . . . . . . . Sentry 18 | . . . 5 . . . . 3 4 . . . 5 . 1 . . . . . . Demolisher 2 | . . . . 2 . . . . . . . . . . . . . . . . . Hunter 2 | . . . . . . . 1 . . . 1 . . . . . . . . . . Programmer 5 | . . . . . . . . 3 1 . . . . . . . . . 1 . . Cetus Guard 1 | . . . . . . . . . . . . . . 1 . . . . . . . Zionite 1 | . . . . 1 . . . . . . . . . . . . . . . . . Assembled 3 | . . . . 3 . . . . . . . . . . . . . . . . . Thug 4 | . . . 1 2 . . . . . . . . 1 . . . . . . . . Best Kill Streak 10 | 3 4 2 7 4 . . 2 8 10 . 1 . 5 1 2 1 5 3 4 1 1 Combat Bots Only 10 | . 3 2 3 3 . . 1 5 10 . 1 . 4 1 1 . 4 3 1 . 1 Max Kills in Single Turn 2 | 1 1 1 2 2 . . 1 2 1 . 1 . 1 1 1 1 1 1 1 1 1 Gunslinging 1 | . . . 1 1 . . . . . . . . . . . . . . . . . Exploded . | . . . . . . . . . . . . . . . . . . . . . . Melee 1 | . . . . . . . . 1 1 . 1 . 1 1 1 . 1 1 1 . 1 Uniques/NPCs Destroyed . | . . . . . . . . . . . . . . . . . . . . . . Combat | -11 -10 -10 -9 -9 -9 -8 -8 -7 -7 -6 -5 -4 -4 -4 -4 -4 -3 -2 -2 -2 -1 -------- Run | Jun Mat Min Mat Min Exi Min Mat Fac Sto Fac Fac Fac Ext Cet Arc Hub Res Res Qua Sec Acc Damage Taken 9990 | . 98 90 369 414 . . 108 2286 733 . 17 . 249 860 332 73 544 298 490 1323 1706 Core 3285 | . 13 11 55 61 . . 29 312 160 . . . 45 181 107 20 272 47 . 723 1249 Absorbed by Shields 153 | . . . . . . . . . . . . . 60 93 . . . . . . . Redirected to Shielding 508 | . . . 35 . . . . 179 153 . . . . . . . 14 13 43 71 . Ignored by Resistances 170 | . . . . . . . . 53 . . 5 . 10 30 . . . 72 . . . Regen/Repaired (Parts) 50 | . . . . . . . . . 28 . 22 . . . . . . . . . . Core Remaining (%) 74 | 100 . 90 . . . 71 94 . 32 100 100 . . . . 69 79 . . 63 21 Volleys Fired 298 | 13 7 13 70 32 . . 11 144 1 . . . . . 7 . . . . . . Largest 2 | 2 2 2 2 2 . . 2 2 1 . . . . . 1 . . . . . . Hottest 143 | 100 46 46 136 130 . . 130 143 25 . . . . . 120 . . . . . . Shots Fired 556 | 26 14 26 140 56 . . 18 267 2 . . . . . 7 . . . . . . Gun 469 | 26 14 26 87 42 . . 8 264 2 . . . . . . . . . . . . Cannon 87 | . . . 53 14 . . 10 3 . . . . . . 7 . . . . . . Launcher . | . . . . . . . . . . . . . . . . . . . . . . Special . | . . . . . . . . . . . . . . . . . . . . . . Kinetic 101 | . 14 26 53 . . . . 6 2 . . . . . . . . . . . . Thermal 420 | 26 . . 87 42 . . 11 247 . . . . . . 7 . . . . . . Explosive . | . . . . . . . . . . . . . . . . . . . . . . Electromagnetic 35 | . . . . 14 . . 7 14 . . . . . . . . . . . . . Robot Hit Streak 29 | 6 4 15 13 11 . . 7 29 . . . . . . . . . . . . . Robot Miss Streak 9 | 1 1 5 6 9 . . 2 8 1 . . . . . . . . . . . . Penetration Max . | . . . . . . . . . . . . . . . . . . . . . . Secondary Targets 3 | . 1 . 1 1 . . . . . . . . . . . . . . . . . Max Gunslinging Chain 1 | . 1 . 1 1 . . . . . . . . . . . . . . . . . Shots Hit Robots 607 | 18 9 19 97 50 . . 13 223 49 . 7 . 43 14 8 2 15 22 12 2 4 Core Hits 351 | 6 5 5 68 66 . . 13 112 19 . 3 . 23 4 4 1 7 8 5 1 1 Critical Kills 1 | . . . 1 . . . . . . . . . . . . . . . . . . Critical Parts Destroyed . | . . . . . . . . . . . . . . . . . . . . . . Critical Strikes 23 | 1 . . 1 . . . . 9 3 . 1 . 1 2 . . . 5 . . . Burn 8 | 1 . . . . . . . 7 . . . . . . . . . . . . . Meltdown 1 | . . . 1 . . . . . . . . . . . . . . . . . . Corrupt 1 | . . . . . . . . 1 . . . . . . . . . . . . . Sever 13 | . . . . . . . . 1 3 . 1 . 1 2 . . . 5 . . . Melee Attacks 390 | . . . . . . . . 29 64 6 18 4 59 15 10 9 25 68 28 28 27 Impact . | . . . . . . . . . . . . . . . . . . . . . . Slashing 387 | . . . . . . . . 29 64 6 18 4 59 15 10 9 25 65 28 28 27 Piercing 3 | . . . . . . . . . . . . . . . . . . 3 . . . Sneak Attacks 27 | . . . . . . . . 2 4 . . . 11 . 1 2 2 2 3 . . Combat Hostiles 5 | . . . . . . . . 1 . . . . 4 . . . . . . . . Follow-up Attacks 8 | . . . . . . . . . . . . . 4 2 1 . . 1 . . . Damage Inflicted 19081 | 237 142 294 1679 762 . . 235 4750 2478 . 449 . 3154 779 676 180 822 1173 906 186 179 Guns 6507 | 237 142 294 1046 553 . . 95 4140 . . . . . . . . . . . . . Cannons 1193 | . . . 633 209 . . 140 . . . . . . . 211 . . . . . . Explosions . | . . . . . . . . . . . . . . . . . . . . . . Melee 11381 | . . . . . . . . 610 2478 . 449 . 3154 779 465 180 822 1173 906 186 179 Ramming . | . . . . . . . . . . . . . . . . . . . . . . Kinetic 1158 | . 142 294 619 . . . . 103 . . . . . . . . . . . . . Thermal 5979 | 237 . . 1060 553 . . 95 3823 . . . . . . 211 . . . . . . Explosive . | . . . . . . . . . . . . . . . . . . . . . . Electromagnetic 563 | . . . . 209 . . 140 214 . . . . . . . . . . . . . Impact . | . . . . . . . . . . . . . . . . . . . . . . Slashing 11381 | . . . . . . . . 610 2478 . 449 . 3154 779 465 180 822 1173 906 186 179 Piercing . | . . . . . . . . . . . . . . . . . . . . . . Highest Corruption 12 | . 1 1 . . . . 3 4 5 . 3 . . 1 1 1 . . 12 12 . Average Corruption 2 | . 1 1 . . . . 3 2 4 . 3 . . 1 1 1 . . 9 12 . Corruption Purged . | . . . . . . . . . . . . . . . . . . . . . . Corruption Blocked . | . . . . . . . . . . . . . . . . . . . . . . Effects 57 | . 1 4 . . . . 2 28 10 . 4 . . 1 . . . . 5 2 . Message Errors 14 | . 1 2 . . . . . 7 3 . . . . . . . . . . 1 . Matter Fused 7 | . . 1 . . . . . 2 1 . 1 . . 1 . . . . 1 . . Heat Flow Errors 8 | . . . . . . . . 7 . . 1 . . . . . . . . . . Energy Discharges 8 | . . 1 . . . . 2 3 1 . . . . . . . . . 1 . . Parts Fused 1 | . . . . . . . . 1 . . . . . . . . . . . . . Data Loss (minor) 9 | . . . . . . . . 4 3 . 1 . . . . . . . 1 . . Data Loss (major) 5 | . . . . . . . . 1 1 . 1 . . . . . . . 1 1 . Misfires 3 | . . . . . . . . 2 1 . . . . . . . . . . . . Misdirections 1 | . . . . . . . . . . . . . . . . . . . 1 . . Weapon Failures 1 | . . . . . . . . 1 . . . . . . . . . . . . . Overload Shots . | . . . . . . . . . . . . . . . . . . . . . . Overflow Damage 1155 | . . . . . . . . 78 210 . 121 . 317 11 48 64 149 31 97 2 27 Projectiles . | . . . . . . . . . . . . . . . . . . . . . . Explosions . | . . . . . . . . . . . . . . . . . . . . . . Melee 1155 | . . . . . . . . 78 210 . 121 . 317 11 48 64 149 31 97 2 27 Knockbacks . | . . . . . . . . . . . . . . . . . . . . . . Impact . | . . . . . . . . . . . . . . . . . . . . . . Kinetic . | . . . . . . . . . . . . . . . . . . . . . . Secondary . | . . . . . . . . . . . . . . . . . . . . . . Self-Inflicted Damage 96 | . . . . . . . . 96 . . . . . . . . . . . . . Shots 1 | . . . . . . . . 1 . . . . . . . . . . . . . Rammed . | . . . . . . . . . . . . . . . . . . . . . . Targets Rammed . | . . . . . . . . . . . . . . . . . . . . . . Kicked . | . . . . . . . . . . . . . . . . . . . . . . Crushed . | . . . . . . . . . . . . . . . . . . . . . . Highest Temperature 328 | 195 . 4 189 130 . . 117 236 19 . 230 328 202 36 322 . . . . 1 . Average Temperature 55 | 66 . 1 43 35 . . 44 32 14 . 55 128 39 14 166 . . . . 1 . Received Heat Transfer 1506 | . . 48 105 52 . . 27 627 198 . . . 55 232 54 . 9 36 . 54 9 Siege Activations . | . . . . . . . . . . . . . . . . . . . . . . Robots Corrupted 1 | . . . . 1 . . . . . . . . . . . . . . . . . Combat Hostiles . | . . . . . . . . . . . . . . . . . . . . . . Parts Fried 7 | . . . . 2 . . 3 2 . . . . . . . . . . . . . Impact Corruptions . | . . . . . . . . . . . . . . . . . . . . . . Robots Melted 5 | . . . 1 . . . . 4 . . . . . . . . . . . . . Combat Hostiles 4 | . . . . . . . . 4 . . . . . . . . . . . . . Parts Melted 21 | 1 . . 3 . . . . 16 1 . . . . . . . . . . . . Heat Transferred 12039 | 777 . . 1635 695 . . 115 8337 . . . . . . 480 . . . . . . Parts Sabotaged . | . . . . . . . . . . . . . . . . . . . . . . Parts Stolen . | . . . . . . . . . . . . . . . . . . . . . . Parts Stripped . | . . . . . . . . . . . . . . . . . . . . . . Power Chain Reactions . | . . . . . . . . . . . . . . . . . . . . . . Missiles Intercepted . | . . . . . . . . . . . . . . . . . . . . . . Alert | -11 -10 -10 -9 -9 -9 -8 -8 -7 -7 -6 -5 -4 -4 -4 -4 -4 -3 -2 -2 -2 -1 ------- Run | Jun Mat Min Mat Min Exi Min Mat Fac Sto Fac Fac Fac Ext Cet Arc Hub Res Res Qua Sec Acc Peak Influence 934 | 25 96 54 431 228 . . 50 850 934 535 480 268 692 514 263 119 171 512 440 601 381 Initial 406 | . 16 4 . 168 . . . 11 386 406 256 235 130 387 201 84 54 99 267 196 243 Average 196 | 13 43 36 103 83 . . 9 175 632 463 394 252 464 430 212 98 108 285 365 320 283 Maximum Alert Level 3 | . . . 2 1 . . . 3 3 2 2 1 2 2 1 . . 2 2 2 1 Low Security (%) 59 | 100 100 100 81 96 . 100 100 68 . . . . 2 . 7 100 100 30 . 2 2 Level 1 20 | . . . 15 3 . . . 16 2 . 40 100 22 15 92 . . 41 68 71 97 Level 2 18 | . . . 2 . . . . 12 61 100 59 . 74 84 . . . 28 31 25 . Level 3 1 | . . . . . . . . 1 36 . . . . . . . . . . . . Level 4 . | . . . . . . . . . . . . . . . . . . . . . . Level 5 . | . . . . . . . . . . . . . . . . . . . . . . High Security . | . . . . . . . . . . . . . . . . . . . . . . Max Security . | . . . . . . . . . . . . . . . . . . . . . . Squads Dispatched 33 | . . 1 1 . . . . 10 6 2 3 . 2 . . . . 1 1 2 4 Investigation 11 | . . 1 . . . . . 3 1 1 2 . 2 . . . . . . 1 . Extermination 7 | . . . . . . . . 3 1 . . . . . . . . 1 1 . 1 Reinforcement 11 | . . . 1 . . . . 3 2 1 1 . . . . . . . . 1 2 Assault 1 | . . . . . . . . 1 . . . . . . . . . . . . . Garrison 2 | . . . . . . . . . 2 . . . . . . . . . . . . Intercept 1 | . . . . . . . . . . . . . . . . . . . . . 1 Searches Triggered 2 | . . . . . . . . . . . . . . . . . . . 1 1 . Construction Impeded . | . . . . . . . . . . . . . . . . . . . . . . Haulers Reinforced 1 | . . . . . . . . 1 . . . . . . . . . . . . . Active Scanning Responses . | . . . . . . . . . . . . . . . . . . . . . . Cargo Convoy Interrupts . | . . . . . . . . . . . . . . . . . . . . . . Stealth | -11 -10 -10 -9 -9 -9 -8 -8 -7 -7 -6 -5 -4 -4 -4 -4 -4 -3 -2 -2 -2 -1 --------- Run | Jun Mat Min Mat Min Exi Min Mat Fac Sto Fac Fac Fac Ext Cet Arc Hub Res Res Qua Sec Acc Distress Signals 12 | . . . 2 1 . . . 1 1 . . . 2 1 . . . 1 1 2 . Communications Jammed . | . . . . . . . . . . . . . . . . . . . . . . Distress Signals . | . . . . . . . . . . . . . . . . . . . . . . Times Spotted 273 | . 3 3 27 11 . . 2 53 27 1 6 3 23 12 5 7 7 28 6 28 21 Peak Tracking Total 19 | . 3 2 5 3 . . 1 6 9 1 2 3 9 6 3 7 4 9 6 19 11 Tactical Retreats 32 | . . . 2 . . . . 4 4 . . . 6 . . . . 9 1 3 3 Traps | -11 -10 -10 -9 -9 -9 -8 -8 -7 -7 -6 -5 -4 -4 -4 -4 -4 -3 -2 -2 -2 -1 ------- Run | Jun Mat Min Mat Min Exi Min Mat Fac Sto Fac Fac Fac Ext Cet Arc Hub Res Res Qua Sec Acc Traps Triggered 6 | . 1 . . . . . . 2 . . . . 1 . . . . . . 1 1 Indirectly . | . . . . . . . . . . . . . . . . . . . . . . Trap Hack Attempts . | . . . . . . . . . . . . . . . . . . . . . . Triggered . | . . . . . . . . . . . . . . . . . . . . . . Disarmed 6 | . . . . . . . . . . . . . . . . . . 6 . . . Reprogrammed 1 | . . . . . . . . . . . . . 1 . . . . . . . . Reused . | . . . . . . . . . . . . . . . . . . . . . . Traps Extracted . | . . . . . . . . . . . . . . . . . . . . . . Installed 1 | . . 1 . . . . . . . . . . . . . . . . . . . Triggered 1 | . . . . . . . . . . . . . 1 . . . . . . . . Most Traps Carried 2 | . . 2 2 2 2 . . . . . . . . . . . . . . . . Machines | -11 -10 -10 -9 -9 -9 -8 -8 -7 -7 -6 -5 -4 -4 -4 -4 -4 -3 -2 -2 -2 -1 ---------- Run | Jun Mat Min Mat Min Exi Min Mat Fac Sto Fac Fac Fac Ext Cet Arc Hub Res Res Qua Sec Acc Machines Disabled 17 | . . . 1 1 . . 1 1 2 . 1 . 2 . . . . . 5 3 . Max in Single Turn 1 | . . . 1 1 . . 1 1 1 . 1 . 1 . . . . . 1 1 . Garrison Access 1 | . . . . . . . . . . . 1 . . . . . . . . . . Machines Repaired . | . . . . . . . . . . . . . . . . . . . . . . Machines Sabotaged . | . . . . . . . . . . . . . . . . . . . . . . Overloaded Fab Kills . | . . . . . . . . . . . . . . . . . . . . . . Hacking | -11 -10 -10 -9 -9 -9 -8 -8 -7 -7 -6 -5 -4 -4 -4 -4 -4 -3 -2 -2 -2 -1 --------- Run | Jun Mat Min Mat Min Exi Min Mat Fac Sto Fac Fac Fac Ext Cet Arc Hub Res Res Qua Sec Acc Machines Accessed 65 | . 3 1 3 1 1 . . 11 7 4 7 2 8 2 . 3 2 2 6 1 1 Terminals 41 | . 2 . 2 . . . . 7 4 1 2 . 7 2 . 3 2 2 6 1 . Fabricators 6 | . . . . . . . . 1 . 1 2 1 . . . . . . . . 1 Repair Stations 2 | . . . . . . . . . 1 . 1 . . . . . . . . . . Recycling Units 10 | . 1 . . . . . . 3 2 1 1 1 1 . . . . . . . . Scanalyzers 2 | . . . 1 . . . . . . 1 . . . . . . . . . . . Garrison Access 1 | . . . . . . . . . . . 1 . . . . . . . . . . Total Hacks 173 | . 11 1 20 1 1 . . 30 17 15 18 3 28 5 . 6 2 4 7 3 1 Successful 85 | . 6 1 13 1 1 . . 13 7 11 8 2 10 4 . 2 1 1 4 . . Failed 88 | . 5 . 7 . . . . 17 10 4 10 1 18 1 . 4 1 3 3 3 1 Catastrophic 15 | . 1 . . . . . . 4 1 . 2 . 3 . . . 1 1 1 . 1 Database Lockouts . | . . . . . . . . . . . . . . . . . . . . . . Manual 51 | . 9 . 4 . 1 . . 17 4 4 2 1 2 1 . 2 . . 1 3 . Terminals 103 | . 9 . 8 . . . . 19 10 1 3 . 26 5 . 6 2 4 7 3 . Fabricators 17 | . . . . . . . . 3 . 4 7 2 . . . . . . . . 1 Repair Stations 5 | . . . . . . . . . 3 . 2 . . . . . . . . . . Recycling Units 26 | . 2 . . . . . . 8 4 7 2 1 2 . . . . . . . . Scanalyzers 15 | . . . 12 . . . . . . 3 . . . . . . . . . . . Garrison Access 4 | . . . . . . . . . . . 4 . . . . . . . . . . Terminal Hacks 32 | . 1 1 1 1 1 . . 4 2 1 . . 8 4 . 2 1 1 4 . . Record 6 | . . . . . . . . . . . . . . 4 . . . . 2 . . Robot Analysis 1 | . 1 . . . . . . . . . . . . . . . . . . . . Prototype ID Bank 1 | . . . . . . . . . . . . . . . . 1 . . . . . Open Door 4 | . . 1 . 1 . . . . 1 . . . 1 . . . . . . . . Open DSF 1 | . . . . . . . . . . . . . . . . . 1 . . . . Branch Access Points 1 | . . . 1 . . . . . . . . . . . . . . . . . . Emergency Access Points 3 | . . . . . . . . . . . . . . . . 1 . . 2 . . Unreport Threat 3 | . . . . . . . . 1 1 . . . 1 . . . . . . . . Disarm Traps 1 | . . . . . . . . . . . . . . . . . . 1 . . . Reprogram Traps 1 | . . . . . . . . . . . . . 1 . . . . . . . . Recall Investigation 1 | . . . . . . . . . . . . . 1 . . . . . . . . Hauler Manifests 1 | . . . . . . . . . . . . . 1 . . . . . . . . Zone Layout 7 | . . . . . . . . 3 . 1 . . 3 . . . . . . . . Derelict Proto ID Bank 1 | . . . . . 1 . . . . . . . . . . . . . . . . Fabricator Hacks 6 | . . . . . . . . . . 2 4 . . . . . . . . . . Load Schematic 3 | . . . . . . . . . . 1 2 . . . . . . . . . . Build 3 | . . . . . . . . . . 1 2 . . . . . . . . . . Repair Station Hacks 4 | . . . . . . . . . 2 . 2 . . . . . . . . . . Scan Component 2 | . . . . . . . . . 1 . 1 . . . . . . . . . . Repair 2 | . . . . . . . . . 1 . 1 . . . . . . . . . . Recycling Unit Hacks 11 | . 1 . . . . . . 2 2 2 1 1 2 . . . . . . . . Report Inventory 5 | . 1 . . . . . . . . 1 1 1 1 . . . . . . . . Retrieve Components 6 | . . . . . . . . 2 2 1 . . 1 . . . . . . . . Scanalyzer 13 | . . . 11 . . . . . . 2 . . . . . . . . . . . Insert Component 6 | . . . 5 . . . . . . 1 . . . . . . . . . . . Analyze 7 | . . . 6 . . . . . . 1 . . . . . . . . . . . Garrison Access Hacks 1 | . . . . . . . . . . . 1 . . . . . . . . . . Seal Access 1 | . . . . . . . . . . . 1 . . . . . . . . . . Unauthorized Hacks 18 | . 4 . 1 . . . . 7 1 4 . 1 . . . . . . . . . Terminals 9 | . 3 . 1 . . . . 4 1 . . . . . . . . . . . . Assimilate 1 | . 1 . . . . . . . . . . . . . . . . . . . . Botnet 8 | . 2 . 1 . . . . 4 1 . . . . . . . . . . . . Fabricators 1 | . . . . . . . . . . . . 1 . . . . . . . . . Haulers 1 | . . . . . . . . . . . . 1 . . . . . . . . . Repair Stations . | . . . . . . . . . . . . . . . . . . . . . . Recycling Units 8 | . 1 . . . . . . 3 . 4 . . . . . . . . . . . Monitor 1 | . . . . . . . . . . 1 . . . . . . . . . . . Reject 4 | . 1 . . . . . . 2 . 1 . . . . . . . . . . . Recyclers 1 | . . . . . . . . . . 1 . . . . . . . . . . . Mask 2 | . . . . . . . . 1 . 1 . . . . . . . . . . . Scanalyzers . | . . . . . . . . . . . . . . . . . . . . . . Garrison Access . | . . . . . . . . . . . . . . . . . . . . . . Data Cores Recovered 3 | . . . . . . . . . 1 . 1 . . . . . 1 . . . . Used 1 | . . . . . . . . . . . 1 . . . . . . . . . . Hacking Detections 50 | . 3 . 3 . . . . 9 6 3 6 1 6 2 . 3 1 2 3 1 1 Full Trace Events 9 | . . . . . . . . 2 1 1 2 . 2 . . . . . . 1 . Feedback Events 2 | . . . . . . . . 1 1 . . . . . . . . . . . . Corruption 2 | . . . . . . . . 1 1 . . . . . . . . . . . . Feedback Blocked . | . . . . . . . . . . . . . . . . . . . . . . Robot Schematics Acquired . | . . . . . . . . . . . . . . . . . . . . . . Robots Built . | . . . . . . . . . . . . . . . . . . . . . . Authchips . | . . . . . . . . . . . . . . . . . . . . . . Time . | . . . . . . . . . . . . . . . . . . . . . . Total Robot Build Rating . | . . . . . . . . . . . . . . . . . . . . . . Part Schematics Acquired 6 | . . . 5 . . . . . . 1 . . . . . . . . . . . Parts Built 3 | . . . . . . . . . . 1 2 . . . . . . . . . . Authchips . | . . . . . . . . . . . . . . . . . . . . . . Time 201 | . . . . . . . . . . 67 134 . . . . . . . . . . Total Part Build Rating 12 | . . . . . . . . . . 4 8 . . . . . . . . . . Parts Repaired 2 | . . . . . . . . . 1 . 1 . . . . . . . . . . Time 47 | . . . . . . . . . 25 . 22 . . . . . . . . . . Parts Recycled . | . . . . . . . . . . . . . . . . . . . . . . Recycled Matter . | . . . . . . . . . . . . . . . . . . . . . . Retrieved Matter . | . . . . . . . . . . . . . . . . . . . . . . Retrieved Components 19 | . . . . . . . . 11 4 1 . . 3 . . . . . . . . Parts Scanalyzed 6 | . . . 5 . . . . . . 1 . . . . . . . . . . . Part Schematics Acquired 6 | . . . 5 . . . . . . 1 . . . . . . . . . . . Parts Damaged 1 | . . . 1 . . . . . . . . . . . . . . . . . . Bothacking | -11 -10 -10 -9 -9 -9 -8 -8 -7 -7 -6 -5 -4 -4 -4 -4 -4 -3 -2 -2 -2 -1 ------------ Run | Jun Mat Min Mat Min Exi Min Mat Fac Sto Fac Fac Fac Ext Cet Arc Hub Res Res Qua Sec Acc Used RIF Installer . | . . . . . . . . . . . . . . . . . . . . . . Robots Hacked . | . . . . . . . . . . . . . . . . . . . . . . Non-combat . | . . . . . . . . . . . . . . . . . . . . . . Combat . | . . . . . . . . . . . . . . . . . . . . . . Robot Hacks Applied . | . . . . . . . . . . . . . . . . . . . . . . Relay Couplers Released . | . . . . . . . . . . . . . . . . . . . . . . Fabnet Peak Effective % . | . . . . . . . . . . . . . . . . . . . . . . Robots Rewired 17 | . . . . . . . . . . . . . 17 . . . . . . . . Allies Hacked . | . . . . . . . . . . . . . . . . . . . . . . Hacks Repelled . | . . . . . . . . . . . . . . . . . . . . . . Allies | -11 -10 -10 -9 -9 -9 -8 -8 -7 -7 -6 -5 -4 -4 -4 -4 -4 -3 -2 -2 -2 -1 -------- Run | Jun Mat Min Mat Min Exi Min Mat Fac Sto Fac Fac Fac Ext Cet Arc Hub Res Res Qua Sec Acc Total Allies 44 | . . . . 2 . . . . 10 . . . 22 2 . . . . . . 8 Largest Group 12 | . . . . 2 . . . . 10 7 . . 12 5 1 . . . . . . Highest-Rated Group 462 | . . . . 43 . . . . 173 125 . . 462 431 152 . . . . . . Highest-Rated Ally 159 | . . . . 31 . . . . 29 29 . . 159 152 152 . . . . . . Total Orders 3 | . . . . . . . . . . . . . 2 1 . . . . . . . ROAM 1 | . . . . . . . . . . . . . . 1 . . . . . . . GUARD 2 | . . . . . . . . . . . . . 2 . . . . . . . . Ally Attacks 185 | . . . . . . . . . 13 47 . . 72 45 . . . . . . 8 Total Damage 4825 | . . . . . . . . . 130 551 . . 2434 1405 . . . . . . 305 Kills 20 | . . . . . . . . . 2 4 . . 9 5 . . . . . . . Allies Corrupted 1 | . . . . 1 . . . . . . . . . . . . . . . . . Allies Melted 1 | . . . . . . . . . . . . . 1 . . . . . . . . Intel | -11 -10 -10 -9 -9 -9 -8 -8 -7 -7 -6 -5 -4 -4 -4 -4 -4 -3 -2 -2 -2 -1 ------- Run | Jun Mat Min Mat Min Exi Min Mat Fac Sto Fac Fac Fac Ext Cet Arc Hub Res Res Qua Sec Acc Robot Analysis Total 1 | . 1 . . . . . . . . . . . . . . . . . . . . Derelict Logs Recovered 2 | . . . . 2 . . . . . . . . . . . . . . . . . Drone Launches 2 | . . . . . . . . . . . . . . . . . . . . . 2 Drone Recoveries . | . . . . . . . . . . . . . . . . . . . . . . Exploration | -11 -10 -10 -9 -9 -9 -8 -8 -7 -7 -6 -5 -4 -4 -4 -4 -4 -3 -2 -2 -2 -1 ------------- Run | Jun Mat Min Mat Min Exi Min Mat Fac Sto Fac Fac Fac Ext Cet Arc Hub Res Res Qua Sec Acc Turns Passed 11842 | 113 635 411 1154 1247 1259 164 555 2677 331 297 395 127 479 201 68 89 156 513 304 252 415 Spaces Moved 9486 | 58 315 207 352 640 624 31 140 1461 325 591 537 254 808 281 62 86 193 938 590 355 638 Core 120 | . . . . . . . . . . . . . . . . 6 1 . . . 113 Treads 2267 | . 297 207 352 640 624 31 116 . . . . . . . . . . . . . . Legs . | . . . . . . . . . . . . . . . . . . . . . . Wheels 1148 | 58 18 . . . . . 24 1048 . . . . . . . . . . . . . Hover . | . . . . . . . . . . . . . . . . . . . . . . Flight 5870 | . . . . . . . . 413 325 591 537 254 808 281 62 80 192 938 590 321 478 Fastest Speed 18 | 90 90 160 160 160 160 480 295 23 24 27 20 18 19 18 22 27 29 22 25 29 32 Average Speed 78 | 90 156 160 160 160 196 480 315 111 28 28 23 20 19 20 24 40 34 24 27 31 36 Slowest Speed 560 | 90 160 160 240 160 560 480 320 380 114 30 27 26 26 22 27 200 250 29 32 35 50 Overloaded Moves . | . . . . . . . . . . . . . . . . . . . . . . Propulsion Burnouts . | . . . . . . . . . . . . . . . . . . . . . . Robots Hopped 23 | . . . . . . . . 1 5 1 3 . 3 . . . 1 3 . 5 1 Cave-ins Triggered 1 | . . . . . . . . . . . . . . . . . . . 1 . . Teleports 1 | . . . . . . . . . . . . . . . . . . . 1 . . Spacefolds 32 | . . . . . . . . . . . . . . . . . . . . 14 18 Exploration Rate (%) 41 | 4 55 53 35 96 69 18 16 45 70 20 16 9 74 77 66 15 5 34 83 27 25 Regions Visited 21 Branch Regions 11 Pre-discovered Areas 1 | . . . . 1 . . . . . . . . . . . . . . . . . Known Exits Taken 11 | . . . 1 . . . . 1 1 1 . . . 1 1 1 1 1 1 1 . Unknown Exits Taken 10 | 1 1 1 . 1 1 1 1 . . . 1 1 1 . . . . . . . . Scrap Searched 1 | . . . . 1 . . . . . . . . . . . . . . . . . Spaces Dug 147 | . . . . . . . 1 18 4 6 9 4 10 1 1 5 5 36 9 22 16 Terrain Destroyed 183 | . . . . . . . 1 54 4 6 9 4 10 1 1 5 5 36 9 22 16 Melee 146 | . . . . . . . . 18 4 6 9 4 10 1 1 5 5 36 9 22 16 Projectile 1 | . . . . . . . 1 . . . . . . . . . . . . . . AOE 36 | . . . . . . . . 36 . . . . . . . . . . . . . Terrain Rammed . | . . . . . . . . . . . . . . . . . . . . . . Walls Destroyed . | . . . . . . . . . . . . . . . . . . . . . . Machines Disabled . | . . . . . . . . . . . . . . . . . . . . . . Actions | -11 -10 -10 -9 -9 -9 -8 -8 -7 -7 -6 -5 -4 -4 -4 -4 -4 -3 -2 -2 -2 -1 --------- Run | Jun Mat Min Mat Min Exi Min Mat Fac Sto Fac Fac Fac Ext Cet Arc Hub Res Res Qua Sec Acc Total 12898 | 93 450 263 808 805 665 49 234 2207 502 712 784 328 1094 409 99 130 252 1143 704 410 757 Wait 1963 | 8 87 25 338 105 22 18 69 329 85 83 205 53 143 96 15 31 20 59 42 38 92 Move 9370 | 57 314 206 351 639 623 30 139 1458 315 588 530 253 801 280 61 85 190 931 588 325 606 Hop 21 | . . . . . . . . 1 4 1 3 . 3 . . . 1 3 . 4 1 Pick Up 172 | 7 20 7 14 5 8 . 4 62 2 5 4 3 5 2 . 1 1 13 9 . . Fast Attach 169 | 1 2 1 7 3 3 . 1 20 10 10 9 3 9 8 1 4 10 28 12 6 21 Attach 52 | . . . 4 3 . . 3 16 5 3 1 1 . 3 . 1 . 6 3 2 1 Detach 46 | . . . 3 1 1 . 1 8 5 5 2 . 2 2 3 . . 5 2 2 4 Swap 108 | 2 4 2 3 10 . 1 5 54 4 1 4 4 4 . 2 . . 6 1 . 1 Drop 258 | 5 16 8 18 7 8 . 1 86 7 10 8 7 11 5 2 1 5 27 19 3 4 Fire 298 | 13 7 13 70 32 . . 11 144 1 . . . . . 7 . . . . . . Melee 373 | . . . . . . . . 29 64 6 18 4 52 13 8 7 25 65 27 28 27 Ram . | . . . . . . . . . . . . . . . . . . . . . . Kick . | . . . . . . . . . . . . . . . . . . . . . . Crush . | . . . . . . . . . . . . . . . . . . . . . . Escape Stasis 3 | . . . . . . . . . . . . . . . . . . . 1 2 . Rewire 64 | . . . . . . . . . . . . . 64 . . . . . . . . Trap 1 | . . 1 . . . . . . . . . . . . . . . . . . . Miscellaneous . | . . . . . . . . . . . . . . . . . . . . . . Route ------- -11/Junkyard -10/Materials (discovered 2 exits: *Mat / *Min) -10/Mines -9/Materials -9/Mines (discovered 3 exits: *Mat / *Exi / [*Zio]) -9/Exiles -8/Mines -8/Materials -7/Factory (discovered 2 exits: *Sto / *Low) -7/Storage -6/Factory -5/Factory -4/Factory -4/Extension (discovered 2 exits: *Res / *Cet) -4/Cetus -4/Archives -4/Hub_04(d) -3/Research -2/Research -2/Quarantine -2/Section 7 -1/Access Tau Ceti IV Orbit History --------- Turn | Location | Event 19 | -11/Junkyard | Discovered new exit (range 3) 114 | -11/Junkyard | Entered Materials 307 | -10/Materials | Build established: Mutant 598 | -10/Materials | Discovered new exit (range 12) 728 | -10/Materials | Discovered new exit (range 14) 749 | -10/Materials | Entered Mines 1019 | -10/Mines | Discovered new exit (range 7) 1039 | -10/Mines | Met a Derelict shopkeep closing up shop 1116 | -10/Mines | Found a hidden stash of uninstalled traps 1160 | -10/Mines | Entered Materials 1160 | -9/Materials | Evolved 2 slots: Utility x2 1309 | -9/Materials | Identified exit to Mines 2314 | -9/Materials | Entered Mines 2328 | -9/Mines | Assembled infested the area 2333 | -9/Mines | Assisted by a Guerilla fighting off Assembled 2518 | -9/Mines | Learned Materials trap positions 2887 | -9/Mines | Learned location of Recycling (-7) 2890 | -9/Mines | Discovered new exit (range 10) 2935 | -9/Mines | A Derelict revealed a hidden shortcut to a safe place 3409 | -9/Mines | Found the Drone Emporium 3417 | -9/Mines | Found Prototype Device 3419 | -9/Mines | Identified Decoy Drone Bay 3555 | -9/Mines | Deemed a non-threat by the Exiles lab entrance 3555 | -9/Mines | Discovered new exit (range 5) 3561 | -9/Mines | Entered Exiles 3600 | -9/Exiles | Met 8R-AWN 3625 | -9/Exiles | Met EX-HEX 3672 | -9/Exiles | Met EX-BIN 3844 | -9/Exiles | Aligned with FarCom system 3845 | -9/Exiles | Given EX-Vault access code 3882 | -9/Exiles | Opened EX-Vault 3898 | -9/Exiles | Found Longsword +1 3902 | -9/Exiles | Found Modified TNC 3910 | -9/Exiles | Found Gui. Plasma Cannon 3943 | -9/Exiles | Warned to stay clear of 0b10 Research branches 4141 | -9/Exiles | Met EX-DEC 4760 | -9/Exiles | Build established: Hauler-Mutant 4764 | -9/Exiles | Discovered new exit (range 14) 4820 | -9/Exiles | Stole three prototypes: Modified TNC, Gui. Plasma Cannon, Longsword +1 4820 | -9/Exiles | Entered Mines 4946 | -8/Mines | Discovered new exit (range 9) 4984 | -8/Mines | Entered Materials 4984 | -8/Materials | Evolved 2 slots: Propulsion x2 4985 | -8/Materials | Loaded intel: 17 trap records 5273 | -8/Materials | Discovered new exit (range 10) 5539 | -8/Materials | Entered Factory 5539 | -7/Factory | Evolved 2 slots: Propulsion x1, Utility x1 5541 | -7/Factory | FarCom data flow suspended 6479 | -7/Factory | Lost 4 parts (1p2n1w) 6959 | -7/Factory | Build established: Scavenger-Mutant 7865 | -7/Factory | Lost 3 parts (3n) 7881 | -7/Factory | Build established: Mutant 7939 | -7/Factory | First assault squad dispatched 8167 | -7/Factory | Discovered new exit (range 10) 8169 | -7/Factory | Identified exit to Lower Caves 8208 | -7/Factory | Discovered new exit (range 15) 8216 | -7/Factory | Identified exit to Storage 8216 | -7/Factory | Entered Storage 8249 | -7/Storage | Repaired Nuclear Pulse Thruster 8282 | -7/Storage | Core integrity fell below 50% 8315 | -7/Storage | Lost 4 parts (4n) 8384 | -7/Storage | Found Prototype Launcher 8384 | -7/Storage | Identified Rocket Array 8436 | -7/Storage | Garrison activated, responded to threat 8495 | -7/Storage | Assisted by bots powering up and referring to "LRC-V3" 8500 | -7/Storage | Destroyed 10 combat bots 8514 | -7/Storage | Discovered new exit (range 16) 8518 | -7/Storage | Identified exit to Factory 8547 | -7/Storage | Entered Factory 8547 | -6/Factory | Accompanied by 7 allies 8547 | -6/Factory | Evolved 2 slots: Propulsion x1, Utility x1 8766 | -6/Factory | Fabricated Imp. Cesium-ion Thruster (x1) 8840 | -6/Factory | Discovered new exit (range 11) 8844 | -6/Factory | Identified exit to Factory 8844 | -6/Factory | Entered another Factory area 8844 | -5/Factory | Evolved 2 slots: Power x1, Utility x1 8869 | -5/Factory | Repaired Xenon Bombardment Thruster 8945 | -5/Factory | Fabricated Imp. Cesium-ion Thruster (x1) 9179 | -5/Factory | Build established: Hacker-Sprinter 9181 | -5/Factory | Fabricated Imp. Cesium-ion Thruster? 9235 | -5/Factory | Discovered new exit (range 5) 9239 | -5/Factory | Entered another Factory area 9239 | -4/Factory | Evolved 2 slots: Propulsion x1, Utility x1 9362 | -4/Factory | Discovered new exit (range 15) 9366 | -4/Factory | Entered Extension 9376 | -4/Extension | Disrupted transfer network 9391 | -4/Extension | Rescued a captive Derelict 9485 | -4/Extension | Rescued a captive Derelict 9488 | -4/Extension | Rescued a captive Derelict 9504 | -4/Extension | Rescued a captive Derelict 9513 | -4/Extension | Spotted B-86 Titan 9668 | -4/Extension | Spotted B-86 Titan 9678 | -4/Extension | Rescued A7 9825 | -4/Extension | Discovered new exit (range 10) 9825 | -4/Extension | Discovered new exit (range 6) 9845 | -4/Extension | Entered Cetus 9845 | -4/Cetus | Accompanied by 5 allies (A7) 9850 | -4/Cetus | Acquired a Cetus Manufacturing Module code from A7 9853 | -4/Cetus | Spotted Cetus Guard 9853 | -4/Cetus | Spotted Cetus Guard 9854 | -4/Cetus | Spotted Cetus Guard 9854 | -4/Cetus | Spotted Cetus Guard 9865 | -4/Cetus | Allies destroyed Cetus Guard 9872 | -4/Cetus | Destroyed Cetus Guard 9875 | -4/Cetus | Allies destroyed Cetus Guard 9876 | -4/Cetus | Allies destroyed Cetus Guard 9903 | -4/Cetus | Lost 8 parts (2p1n5u) 9934 | -4/Cetus | Discovered new exit (range 15) 9950 | -4/Cetus | Identified exit to Archives 9991 | -4/Cetus | Started Cetus Manufacturing Module 10016 | -4/Cetus | Manufactured an Enhanced Grunt 10041 | -4/Cetus | Manufactured an Enhanced Grunt 10046 | -4/Cetus | Entered Archives 10046 | -4/Archives | Accompanied by 1 ally (A7) 10108 | -4/Archives | Discovered new exit (range 15) 10114 | -4/Archives | Identified exit to Hub_04(d) 10114 | -4/Archives | Entered Hub_04(d) 10140 | -4/Hub_04(d) | Lost 3 parts (2n1u) 10172 | -4/Hub_04(d) | Discovered new exit (range 16) 10200 | -4/Hub_04(d) | Identified exit to Research 10203 | -4/Hub_04(d) | Entered Research 10203 | -3/Research | Evolved 2 slots: Utility x2 10297 | -3/Research | Lost 4 parts (1p1n2u) 10354 | -3/Research | Discovered new exit (range 16) 10359 | -3/Research | Identified exit to Research 10359 | -3/Research | Entered another Research area 10359 | -2/Research | Evolved 2 slots: Propulsion x1, Utility x1 10393 | -2/Research | Spotted B-90 Cyclops 10628 | -2/Research | Found Enh. Force Lance 10664 | -2/Research | Lost 3 parts (1p1n1u) 10759 | -2/Research | Found Prototype Hackware 10759 | -2/Research | Identified Exp. System Shield 10849 | -2/Research | Discovered new exit (range 19) 10872 | -2/Research | Identified exit to Quarantine 10872 | -2/Research | Entered Quarantine 10879 | -2/Quarantine | Found Sigix Corpse 10885 | -2/Quarantine | Found Sigix Corpse 10971 | -2/Quarantine | Met incapacitated Sigix Warrior 10971 | -2/Quarantine | Lockdown squad dispatched 10974 | -2/Quarantine | Acquired the access code to the Sigix quarantine chamber 10975 | -2/Quarantine | Unlocked Sigix quarantine chamber 11007 | -2/Quarantine | Found Alien Artifact 11007 | -2/Quarantine | Identified Phase Armor 11043 | -2/Quarantine | Found Alien Artifact 11043 | -2/Quarantine | Identified Terrabomb 11043 | -2/Quarantine | Used Terrabomb 11043 | -2/Quarantine | Spotted Lightning 11058 | -2/Quarantine | Crushed by falling debris 11075 | -2/Quarantine | Found Alien Artifact 11075 | -2/Quarantine | Identified Hpw. Transdimensional Reconstructor 11075 | -2/Quarantine | Warped through subspace 11087 | -2/Quarantine | Found Alien Impact Weapon 11087 | -2/Quarantine | Identified Core Stripper 11089 | -2/Quarantine | Lost 3 parts (1p1n1u) 11113 | -2/Quarantine | Found Prototype Slashing Weapon 11113 | -2/Quarantine | Identified Centrium Greatsword 11131 | -2/Quarantine | System corruption reached 10% 11139 | -2/Quarantine | Spotted Fortress 11159 | -2/Quarantine | Search patrols dispatched 11174 | -2/Quarantine | Discovered new exit (range 6) 11176 | -2/Quarantine | Identified exit to Section 7 11176 | -2/Quarantine | Entered Section 7 11201 | -2/Section 7 | Found Alien Artifact 11201 | -2/Section 7 | Identified Spacefold Activator 11245 | -2/Section 7 | Found Alien Artifact 11245 | -2/Section 7 | Identified Core Reset Matrix 11245 | -2/Section 7 | Used Core Reset Matrix 11249 | -2/Section 7 | Sensed 16 artifacts in vicinity 11357 | -2/Section 7 | Spotted S7 Guard 11362 | -2/Section 7 | Found Core Membrane 11362 | -2/Section 7 | Installed Core Membrane, gained immunity to corruption 11388 | -2/Section 7 | Spotted Alpha 7 11390 | -2/Section 7 | Spotted Alpha 7 11403 | -2/Section 7 | Spotted S7 Guard 11405 | -2/Section 7 | Found Core Regenerator 11405 | -2/Section 7 | Used Core Regenerator, restored core integrity (+362) 11415 | -2/Section 7 | Discovered new exit (range 7) 11418 | -2/Section 7 | Scanned by Researcher 11420 | -2/Section 7 | Identified exit to Access 11426 | -2/Section 7 | Search patrols dispatched 11428 | -2/Section 7 | Entered Access 11428 | -1/Access | Evolved 2 slots: Propulsion x1, Utility x1 11456 | -1/Access | Lost 6 parts (2n4u) 11613 | -1/Access | Found Unknown Device 11613 | -1/Access | Identified Launcher Loader 11629 | -1/Access | Found Prototype Processor 11629 | -1/Access | Identified Exp. Armor Integrity Analyzer 11645 | -1/Access | Found Exp. Armor Integrity Analyzer 11666 | -1/Access | Build established: Alien-Ninja 11699 | -1/Access | Spotted B-99 Colossus 11752 | -1/Access | Released all parts (15) 11799 | -1/Access | Lost 5 parts (4n1w) 11828 | -1/Access | Core integrity fell below 50% 11836 | -1/Access | Spotted B-99 Colossus 11836 | -1/Access | Spotted B-99 Colossus 11837 | -1/Access | Emitted hypermatrix ping 11840 | -1/Access | Intercept squad dispatched 11842 | -1/Access | Assembled emerged from beneath the floor 11842 | -1/Access | Discovered new exit (range 5) 11843 | *** | Destroyed 0b10! Last Messages --------------- A005. 11837_ Emitted hypermatrix ping. 11837_ Penetrated by Slug. 11837_ Slug penetrates Reinforced Barrier. 11838_ Spacefolded through Reinforced Barrier. 11839_ Spacefolded through Wall. 11840_ ALERT: LRC-V3 signature pinpointed, intercept squad dispatched. Sealed Heavy Doors opened remotely. 11842_ EXIT=FOUND 11842_ as-39790 sneak attacks. 11842_ Slug penetrates B-99 Colossus. 11842_ as-82420 sneak attacks. 11842_ as-35271 sneak attacks. 11842_ Slug penetrates as-13190. 11842_ as-13190 destroyed. 11842_ Slug penetrates Reinforced Barrier. 11843_ Slug penetrates as-57526. 11843_ Slug penetrates as-84131. 11843_ Slug penetrates B-99 Colossus. [Achievement: Winner's Signature] Map ----- +----------------------------------------------------+ | ?????????????????????????????????????????????????? | | ?????????????????????????????????????????????????? | | ?????????????????????????????????????????????????? | | ??????????????????????????????????????????????+### | | ???????????????????????????????????????????? | | ???????????????????????????????????????????? | | ???????????????????????????????????????????? | | ????????????????????????????????????????????? | | ????????????????????????????????????????????? | | ????????????????????????????????????????????? | | ??????????????????????########???????????????? | | ???????????????????? ??????? ???????T""" | | ???????????????????? ??????? ?????????"" | | ????????????????????# "???###+#/########??# | | ????????????????????# ""??# #??? | | ????????????????????# ""??# #??? | | ????????????????????# T#?# #??? | | ????????????????????# ""#?# #### | | ????????????????????# ""#?# / | | ???????????????????## ""### #### | | ???????????????????# ## " #??? | | ????????????????????# #?# """ #??? | | ????????????????????# #?# """#??? | | ????????????????????# #?# " #??? | | ????????????????????# #?# #??? | | ????????????????????# @" #?# #??? | | ????????????????????# "" #?################# | | ????????????????????# #?# | | ????????????????????# #?# | | ????????????????????# ### " " | | ????????????????????# #?# """ """ | | ????????????????????# #?# """ """ | | ????????????????????# ### " " ?? | | ????????????????????# ### ? | | ????????????????????# BB aaa#?# | | ????????????????????# BB BB%#?# | | ????????????????????# BBa#?#######+######### | | ????????????????????# aaa#?????????????????? | | ????????????????????# #?????????????????? | | ????????????????????# #?????????????????? | | ????????????????????# #?????????????????? | | ????????????????????#### ####?????????????????? | | ???????????????????????# ?????????????????????? | | ???????????????????????# ?????????????????????? | | ???????????????????????# ??????????????????????? | | ???????????????????????+ ??????????????????????? | | ???????????????????????# ??????????????????????? | | ???????????????????????+ ???????????????????????? | | ???????????????????????##????????????????????????? | | ?????????????????????????????????????????????????? | +----------------------------------------------------+ Best States ------------- Heat Dissipation 87 Coolant Potential 120 Energy Generation 45 Energy Capacity 860 Matter Stores 300 Matter Capacity 300 Sight Range 20 Robot Scan Range 18 Terrain Scan Range 20 Terrain Scan Density 210 Cloak Strength 4 Power Amplification 30 Additional Mass Support 16 Armor Coverage 450 Resistance: KI 30 Propulsion Shielding 66 Weapon Shielding 66 Melee Speed Boost 20 Phase Shifting 15 Evasion (%) 88 Targeting Accuracy 20 Melee Accuracy 5 Launcher Accuracy 40 Target Analysis 8 Core Analysis 6 Armor Integrity Analysis 50 Recoil Reduction 6 Matter Filtering 30 Particle Charging 15 Offensive Hacking 20 Defensive Hacking 22 Item Schematics ----------------- None Robot Schematics ------------------ None Fabricated ------------ Imp. Cesium-ion Thruster | x1 | -6/Factory Imp. Cesium-ion Thruster | x1 | -5/Factory Imp. Cesium-ion Thruster | x1 | -5/Factory Alien Tech Used ----------------- Phase Armor Terrabomb High-powered Transdimensional Reconstructor Core Stripper Spacefold Activator Core Reset Matrix Core Membrane Core Regenerator Achievements -------------- Signature Confirmed Winner's Signature Challenges ------------ None Game ------ Seed PointClaymoresMegatreads Manual? 0 Play Time 02:43:36 Cumulative 32.6 hours Start 2023.11.15 @ 20:59:18 End 2023.11.15 @ 23:52:21 Sessions 1 Manual Loads 0 Difficulty Rogue Special Mode None Game No. 14 Rogue 14 Adventurer 0 Explorer 0 Win Type 3 Total 2 Types 0/0/0/2/0/0/0/0/0 Lore% 30 Gallery% 46 Achievement% 70 Wizard Run 0 Options --------- ASCII 0 Keyboard 0 Movement Mouse Keybinds 0 Fullscreen 2 Font 36/X11 Map View 76x50 Tactical HUD 1 Map Filters NONE Filters NONE Steam 1 RUN: 3ee52bf7-d5f9-4374-9fb0-f3134098c7a8